Cogmind - Beta 10.2 @@@ ROGUE MODE // 2020.11.11 @ 23:53:14 // Halloween2020/ForbiddenLore Player: Ty Piggbottom Result: Destroyed by S-10 Pest with Light Assault Rifle Performance ------------- Evolutions (0) 0 Regions Visited (2) 400 Robots Destroyed (50) 250 Value Destroyed (706) 706 Prototype IDs (2) 40 Alien Tech Used (0) 0 Bonus (0) 0 TOTAL SCORE: 1396 Bonus ------- None Cogmind --------- Core Integrity 0/250 Matter 300/300 Energy 250/250 System Corruption 2% Temperature Cool (0) Movement Rolling (100) Ox1 Location -10/Mines Parts ------- > --- POWER (1) -------- Ion Engine > --- PROPULSION (2) --- Wheel Compact Wheel > --- UTILITY (2) ------ High-capacity Storage Unit Signal Interpreter > --- WEAPON (2) ------- (None) > --- INVENTORY (12) --- Light Ion Engine Wheel Wheel Compact Matter Pod (150) Compact Matter Pod (150) Compact Matter Pod (150) Compact Matter Pod (150) Sensor Array Signal Interpreter Mining Laser Peak State ------------ > --- POWER ------------ Ion Engine > --- PROPULSION ------- Wheel Wheel > --- UTILITY ---------- High-capacity Storage Unit Signal Interpreter > --- WEAPON ----------- Medium Laser Grenade Launcher > --- INVENTORY -------- Ion Engine Compact Matter Pod Compact Matter Pod Compact Matter Pod Sensor Array Signal Interpreter [Rating: 8] Favorites ----------- Power Ion Engine Engine Ion Engine Propulsion Wheel Wheel Wheel Utility Signal Interpreter Device Sensor Array Storage Small Storage Unit Processor Signal Interpreter Weapon Grenade Launcher Energy Gun Small Laser Ballistic Gun Light Assault Rifle Launcher Grenade Launcher Build | -11 -10 -10 ------- Run | Scr Mat Min Slots Evolved . | . . . Power . | . . . Propulsion . | . . . Utility . | . . . Weapon . | . . . Parts Attached 50 | 6 37 7 Power 8 | 1 4 3 Engine 8 | 1 4 3 Core . | . . . Reactor . | . . . Propulsion 11 | 2 7 2 Treads . | . . . Leg . | . . . Wheel 11 | 2 7 2 Hover . | . . . Flight . | . . . Utility 5 | 1 2 2 Device 2 | . 1 1 Storage 2 | 1 . 1 Processor 1 | . 1 . Hackware . | . . . Protection . | . . . Artifact . | . . . Weapon 26 | 2 24 . Energy Gun 12 | 2 10 . Energy Cannon . | . . . Ballistic Gun 4 | . 4 . Ballistic Cannon . | . . . Launcher 10 | . 10 . Special Weapon . | . . . Impact Weapon . | . . . Slashing Weapon . | . . . Piercing Weapon . | . . . Special Melee Weapon . | . . . Unidentified Prototypes . | . . . Parts Lost 9 | . 7 2 Power 2 | . 2 . Propulsion 1 | . 1 . Utility . | . . . Weapon 6 | . 4 2 Highest Loss Streak 3 | . 3 1 Average Slot Usage (%) 86 | . 86 90 Engine 11 | . 10 14 Wheel 27 | . 27 28 Device 5 | . 7 . Storage 5 | . 4 11 Processor 10 | . 9 14 Energy Gun 13 | . 14 7 Ballistic Gun 1 | . 1 . Launcher 9 | . 9 13 Naked Turns . | . . . Heaviest Build 42 | 10 14 42 Greatest Support 26 | 20 26 26 Greatest Overweight (x) 2 | . 2 2 Average Overweight (x) . | . . 1 Largest Inventory Capacity 12 | 6 6 12 Average Capacity 5 | 5 4 10 Most Carried 10 | 1 5 10 Average Carried 3 | . 2 7 Final Capacity 12 | 6 4 12 Final Carried 10 | . 3 10 Class Distribution -------------------- 94% | Mutant 5% | Scavenger-Mutant Dominant Class ---------------- Mutant | -10/Materials Mutant | -10/Mines Resources | -11 -10 -10 ----------- Run | Scr Mat Min Matter Collected 1378 | 260 757 361 Remotely . | . . . Salvage Created 1370 | 66 709 595 Parts 79 | 2 48 29 Haulers Intercepted 2 | . 2 . Recyclers Shooed 7 | . 4 3 Parts Field Recycled . | . . . Retrieved Matter . | . . . Parts Self-Destructed . | . . . Prevented . | . . . Kills | -11 -10 -10 ------- Run | Scr Mat Min Combat Hostiles Destroyed 23 | . 14 9 Melee 1 | . . 1 Guns 3 | . 3 . AOE 19 | . 11 8 Classes Destroyed 9 | 1 7 1 Worker 4 | . 4 . Builder 1 | . 1 . Tunneler 2 | . . 2 Hauler 2 | . 2 . Recycler 14 | 1 4 9 Operator 1 | . 1 . Watcher 3 | . 3 . Swarmer 16 | . 9 7 Grunt 7 | . 5 2 Best Kill Streak 8 | 1 5 8 Combat Bots Only 3 | . 3 3 Max Kills in Single Turn 4 | 1 4 3 Gunslinging . | . . . Exploded 3 | . 3 2 Melee 1 | . . 1 Uniques/NPCs Destroyed . | . . . Combat | -11 -10 -10 -------- Run | Scr Mat Min Damage Taken 1023 | . 708 315 Core 250 | . 100 150 Absorbed by Shields . | . . . Core Remaining (%) 100 | 100 . . Volleys Fired 103 | 1 77 25 Largest 2 | 2 2 2 Hottest 90 | 90 80 80 Shots Fired 158 | 2 125 31 Gun 94 | 2 85 7 Cannon . | . . . Launcher 64 | . 40 24 Special . | . . . Kinetic 10 | . 10 . Thermal 69 | 2 60 7 Explosive 64 | . 40 24 Electromagnetic 15 | . 15 . Robot Hit Streak 10 | 2 10 7 Robot Miss Streak 3 | . 3 3 Penetration Max . | . . . Secondary Targets . | . . . Shots Hit Robots 62 | 2 49 11 Core Hits 76 | 2 45 29 Critical Hits . | . . . Critical Kills . | . . . Critical Parts Destroyed . | . . . Melee Attacks . | . . . Impact . | . . . Slashing . | . . . Piercing . | . . . Sneak Attacks . | . . . Combat Hostiles . | . . . Follow-up Attacks . | . . . Damage Inflicted 2866 | 23 1540 1303 Guns 486 | 23 438 25 Cannons . | . . . Explosions 2364 | . 1102 1262 Melee . | . . . Ramming 16 | . . 16 Kinetic 41 | . 41 . Thermal 314 | 23 266 25 Explosive 2364 | . 1102 1262 Electromagnetic 131 | . 131 . Impact . | . . . Slashing . | . . . Piercing . | . . . Highest Corruption 2 | . 2 2 Average Corruption 2 | . 2 2 Corruption Purged . | . . . Effects 16 | . 11 5 Message Errors 6 | . 2 4 Heat Flow Errors 2 | . 2 . Energy Discharges 2 | . 2 . Data Loss (minor) 2 | . 1 1 Targeting Errors 3 | . 3 . Weapon Failures 1 | . 1 . Overload Shots . | . . . Overflow Damage 111 | . 70 41 Projectiles . | . . . Explosions 111 | . 70 41 Melee . | . . . Knockbacks . | . . . Impact . | . . . Kinetic . | . . . Secondary . | . . . Self-Inflicted Damage 415 | . 305 110 Shots 16 | . 10 6 Rammed 3 | . . 3 Targets Rammed 3 | . . 3 Kicked . | . . . Crushed . | . . . Highest Temperature 386 | 30 386 36 Average Temperature 64 | 17 72 14 Received Heat Transfer 177 | . 150 27 Effects 1 | . 1 . Damage (minor) 1 | . 1 . Siege Activations . | . . . Robots Corrupted . | . . . Combat Hostiles . | . . . Parts Fried . | . . . Impact Corruptions . | . . . Robots Melted . | . . . Combat Hostiles . | . . . Parts Melted . | . . . Heat Transferred 807 | 62 671 74 Parts Sabotaged . | . . . Parts Stolen . | . . . Parts Stripped . | . . . Power Chain Reactions . | . . . Missiles Intercepted . | . . . Alert | -11 -10 -10 ------- Run | Scr Mat Min Peak Influence 381 | 5 381 342 Initial 57 | . 3 57 Average 197 | 2 208 186 Maximum Alert Level 1 | . 1 1 Low Security (%) 47 | 100 44 53 Level 1 52 | . 55 46 Level 2 . | . . . Level 3 . | . . . Level 4 . | . . . Level 5 . | . . . High Security . | . . . Max Security . | . . . Squads Dispatched 2 | . 2 . Investigation 1 | . 1 . Extermination . | . . . Reinforcement 1 | . 1 . Assault . | . . . Garrison . | . . . Intercept . | . . . Construction Impeded . | . . . Haulers Reinforced . | . . . Stealth | -11 -10 -10 --------- Run | Scr Mat Min Distress Signals 1 | . 1 . Communications Jammed . | . . . Distress Signals . | . . . Times Spotted 27 | . 17 10 Peak Tracking Total 3 | . 3 3 Tactical Retreats . | . . . Traps | -11 -10 -10 ------- Run | Scr Mat Min Traps Triggered 2 | . 2 . Indirectly . | . . . Trap Hack Attempts . | . . . Triggered . | . . . Disarmed . | . . . Reprogrammed . | . . . Reused . | . . . Traps Extracted . | . . . Installed . | . . . Triggered . | . . . Machines | -11 -10 -10 ---------- Run | Scr Mat Min Machines Disabled 12 | . 11 1 Max in Single Turn 2 | . 2 1 Machines Sabotaged . | . . . Garrisons Compromised . | . . . Overloaded Fab Kills . | . . . Fab Network Shutdowns . | . . . Hacking | -11 -10 -10 --------- Run | Scr Mat Min Machines Accessed 10 | . 10 . Terminals 7 | . 7 . Fabricators . | . . . Repair Stations 1 | . 1 . Recycling Units 2 | . 2 . Scanalyzers . | . . . Garrison Access . | . . . Total Hacks 28 | . 28 . Successful 18 | . 18 . Failed 10 | . 10 . Catastrophic 1 | . 1 . Database Lockouts . | . . . Manual 17 | . 17 . Terminals 18 | . 18 . Fabricators . | . . . Repair Stations 5 | . 5 . Recycling Units 5 | . 5 . Scanalyzers . | . . . Garrison Access . | . . . Terminal Hacks 6 | . 6 . Robot Analysis 2 | . 2 . Prototype ID Bank 1 | . 1 . Terminal Index 1 | . 1 . Locate Traps 1 | . 1 . Zone Layout 1 | . 1 . Fabricator Hacks . | . . . Repair Station Hacks 5 | . 5 . Scan Component 2 | . 2 . Repair 2 | . 2 . Refit 1 | . 1 . Recycling Unit Hacks 2 | . 2 . Report Inventory 2 | . 2 . Scanalyzer . | . . . Garrison Access Hacks . | . . . Unauthorized Hacks 5 | . 5 . Terminals 3 | . 3 . Botnet 3 | . 3 . Fabricators . | . . . Repair Stations . | . . . Recycling Units 2 | . 2 . Reject 1 | . 1 . Mask 1 | . 1 . Scanalyzers . | . . . Garrison Access . | . . . Data Cores Recovered . | . . . Used . | . . . Hacking Detections 10 | . 10 . Full Trace Events 1 | . 1 . Feedback Events . | . . . Feedback Blocked . | . . . Robot Schematics Acquired . | . . . Robots Built . | . . . Matter . | . . . Time . | . . . Total Robot Build Rating . | . . . Part Schematics Acquired . | . . . Parts Built . | . . . Matter . | . . . Time . | . . . Total Part Build Rating . | . . . Parts Repaired 2 | . 2 . Time 52 | . 52 . Parts Recycled . | . . . Recycled Matter . | . . . Retrieved Matter . | . . . Retrieved Components . | . . . Parts Scanalyzed . | . . . Part Schematics Acquired . | . . . Parts Damaged . | . . . Bothacking | -11 -10 -10 ------------ Run | Scr Mat Min Used RIF Installer . | . . . Robots Hacked . | . . . Non-combat . | . . . Combat . | . . . Robot Hacks Applied . | . . . Relay Couplers Released . | . . . Robots Rewired . | . . . Allies Hacked . | . . . Hacks Repelled . | . . . Allies | -11 -10 -10 -------- Run | Scr Mat Min Total Allies . | . . . Largest Group . | . . . Highest-Rated Group . | . . . Highest-Rated Ally . | . . . Total Orders . | . . . Ally Attacks . | . . . Total Damage . | . . . Kills . | . . . Allies Corrupted . | . . . Allies Melted . | . . . Intel | -11 -10 -10 ------- Run | Scr Mat Min Robot Analysis Total 2 | . 2 . Derelict Logs Recovered 1 | . . 1 Drone Launches . | . . . Drone Recoveries . | . . . Exploration | -11 -10 -10 ------------- Run | Scr Mat Min Turns Passed 1676 | 59 1326 291 Spaces Moved 1474 | 48 1198 228 Core 2 | 1 1 . Treads . | . . . Legs . | . . . Wheels 1472 | 47 1197 228 Hover . | . . . Flight . | . . . Fastest Speed 50 | 50 80 80 Average Speed 82 | 79 80 94 Slowest Speed 150 | 80 150 100 Overloaded Moves . | . . . Propulsion Burnouts . | . . . Robots Hopped . | . . . Cave-ins Triggered . | . . . Exploration Rate (%) 47 | 4 96 42 Regions Visited 2 Branch Regions 1 Pre-discovered Areas . | . . . Known Exits Taken 1 | . 1 . Unknown Exits Taken 1 | 1 . . Scrap Searched . | . . . Spaces Dug 105 | . 95 10 Terrain Destroyed 448 | . 302 146 Melee . | . . . Projectile . | . . . AOE 448 | . 302 146 Terrain Rammed . | . . . Walls Destroyed . | . . . Machines Disabled . | . . . Actions | -11 -10 -10 --------- Run | Scr Mat Min Total 1765 | 64 1431 270 Wait 106 | 9 96 1 Move 1472 | 47 1197 228 Hop . | . . . Pick Up 15 | 1 9 5 Fast Attach 15 | 5 10 . Attach 6 | 1 4 1 Detach 2 | . 2 . Swap 29 | . 23 6 Drop 14 | . 13 1 Fire 103 | 1 77 25 Melee . | . . . Ram 3 | . . 3 Kick . | . . . Crush . | . . . Escape Stasis . | . . . Rewire . | . . . Trap . | . . . Miscellaneous . | . . . Route ------- -11/Scrapyard -10/Materials (discovered 5 exits: *Mat x3 / *Min x2) -10/Mines (discovered 1 exit: *Mat) History --------- Turn | Location | Event 23 | -11/Scrapyard | Discovered new exit (range 15) 60 | -11/Scrapyard | Entered Materials 131 | -10/Materials | Discovered new exit (range 6) 248 | -10/Materials | Discovered new exit (range 15) 316 | -10/Materials | Build established: Mutant 319 | -10/Materials | Lost 3 parts (1p2w) 385 | -10/Materials | Discovered new exit (range 13) 453 | -10/Materials | Repaired Grenade Launcher 659 | -10/Materials | Discovered new exit (range 11) 798 | -10/Materials | Lost 3 parts (1n2w) 835 | -10/Materials | Discovered new exit (range 13) 850 | -10/Materials | Identified exit to Materials 951 | -10/Materials | Repaired Grenade Launcher 1019 | -10/Materials | Identified exit to Mines 1386 | -10/Materials | Entered Mines 1393 | -10/Mines | Core integrity fell below 50% 1418 | -10/Mines | Learned Materials trap positions 1515 | -10/Mines | Discovered exit to Materials (range 12) 1638 | -10/Mines | Core integrity fell below 20% 1677 | -10/Mines | Destroyed by S-10 Pest with Light Assault Rifle Last Messages --------------- 01657_ K-01 Serf collects debris. 01658_ U-05 Engineer lays Concrete. 01661_ K-01 Serf collects debris. 01661_ Grenade Launcher destroyed. 01662_ U-05 Engineer lays Concrete. 01666_ The unstable cave ceiling collapses. 01666_ U-05 Engineer lays Concrete. 01667_ The unstable cave ceiling collapses. 01667_ U-05 Engineer lays Concrete. 01667_ Acquired 18 matter. 01668_ U-05 Engineer lays Concrete. 01669_ R-06 Scavenger collects Com. Wheel. 01669_ U-05 Engineer lays Concrete. 01674_ Slammed into S-10 Pest. 01674_ Destabilizing: Core damaged (-10). 01675_ Slammed into S-10 Pest. 01675_ S-10 Pest destroyed. 01676_ U-05 Engineer lays Concrete. 01676_ Slammed into S-10 Pest. 01677_ U-05 Engineer lays Concrete. Map ----- +----------------------------------------------------+ | ??????????????????????????? ??????????????? | | ??????????????????????????? #??????????????? | | ??????????????????????????? #??????????????? | | ??????????????????????????# #??????????????? | | ?????????????????????????# ##?????????????? | | ????????????????????????? ###???????????? | | ????????????????????????? ????????????? | | ????????????????????????? ?????????????? | | ???????????????????????## #??????????????? | | ???????????????#####?### #??????????????? | | ???????????????# ## #???????????????? | | ?????????????### #????????????????? | | ?????????##### % #?????????????????? | | ??????? *[ #?????????????????? | | ???????????### ##????????????????? | | ?????????????## # # ##???????????????? | | ??????????????####?# # ##??????????????? | | ???????????????????#### #??????????????? | | ?????????????????????# ! #??????????????? | | ????????????????????## * !##??????????????? | | ????????????????????# * #???????? #???? | | ????????????????????# r #?????? #???? | | ????????????????????# u ###### ?????? | | ????????????????????# s # ????????? | | ????????????????????# # #????????????? | | ????????????????????## =@ #????????????? | | ?????????????????????# #% s ##???????????? | | ????????????????????###% ! #???????????? | | ????????????????????## % #???????????? | | ?????#####??????????# ##???????????? | | ????## ##?????##### ##????????????? | | ???## #??#### # ####?????????????? | | ??## #### #???????????????? | | ?## ## # #???????????????? | | ## ## % % #???????????????? | | * # % < #???????????????? | | % *% # #### ##???????????????? | | = # ##????????????????? | | # # # ## ##?????????????????? | | # ## ########## #??????????????????? | | ###### ##????????# #??????????????????? | | # ##??? #????????? #??????????????????? | | ## #??? ???????? #??????????????????? | | ?# #??# """ ??????# ??????????????????? | | ?# ? """ ?????# ??????????????????? | | ?# """ #????# ?????????????????? | | ?#####??? ???? ?????????????????? | | ??????????? ???? ?????????????????? | | ??????????? ?? ### ?????????????????? | | ??????????? ?? #???# ?????????????????? | +----------------------------------------------------+ Best States ------------- Heat Dissipation 25 Energy Generation 10 Energy Capacity 250 Matter Stores 300 Matter Capacity 300 Sight Range 16 Robot Scan Range 10 Terrain Scan Density 10 Evasion (%) 44 Item Schematics ----------------- None Robot Schematics ------------------ None Fabricated ------------ Nothing Alien Tech Used ----------------- None Achievements -------------- None Challenges ------------ None Game ------ Seed AnalysisNeutrinoSuperbattery Manual? 0 Play Time 00:33:47 Cumulative 169.6 hours Start 2020.11.11 @ 23:23:59 End 2020.11.11 @ 23:53:14 Sessions 1 Manual Loads 0 Difficulty Rogue Special Mode Halloween2020/ForbiddenLore Game No. 65 Rogue 65 Adventurer 0 Explorer 0 Win Type - Total 0 Types 0/0/0/0/0/0/0/0/0 Lore% 21 Gallery% 24 Achievement% 22 Wizard Run 0 Options --------- ASCII 0 Keyboard 1 Movement Vi Keybinds 0 Fullscreen 1 Font 12/Terminus Map View 83x54 Tactical HUD 1 Map Filters NONE Filters NONE Steam 1 RUN: 910d7f4f-67dc-4026-adf4-4da122bc415a